fUSD/lending_fUSD_20241004
["ID","MTS","AMOUNT","RATE_DAILY","PERIOD"]
[339841741,1728052385978,-374.04,0.0001516,3]
[339841742,1728052385987,-830.35916743,0.000247,2]
[339841743,1728052385996,-357.90968041,0.000247,7]
[339841744,1728052386007,-1.91402859,0.000247,7]
[339841745,1728052386016,-359.823709,0.000248,7]
[339841746,1728052386025,-359.823709,0.000248,7]
[339841747,1728052386036,-359.823709,0.00025,7]
[339841748,1728052386045,-752.97024441,0.00033543,15]
[339841749,1728052386170,-379.70137325,0.00033543,15]
[339841750,1728052386193,-359.823709,0.000299,7]
[339841751,1728052386203,-7578.4408334,0.00033543,15]
[339841752,1728052386212,-754.45,0.00036164,2]
[339841753,1728052386220,-358.52,0.00036164,2]
[339841754,1728052386229,-754.45,0.00036164,2]
[339841755,1728052386239,-358.52,0.00036164,2]
[339841756,1728052386248,-358.52,0.00036164,2]
[339841757,1728052386257,-500.0,0.00038356,120]
[339841758,1728052386267,-500.0,0.0003863,120]
[339841759,1728052386276,-500.0,0.0003863,120]
[339841760,1728052386286,-500.0,0.0003863,120]
[339841761,1728052386295,-500.0,0.00038904,120]
[339841762,1728052386305,-500.0,0.00038904,120]
[339841763,1728052386318,-500.0,0.00038904,120]
[339841764,1728052386327,-500.0,0.00039178,120]
[339841765,1728052386336,-500.0,0.00039178,120]
[339841766,1728052386345,-500.0,0.00039178,120]
[339841767,1728052386357,-742.99,0.00039452,120]
[339841768,1728052386366,-500.0,0.00039452,120]
[339841769,1728052386375,-500.0,0.00039452,120]
[339841770,1728052386386,-500.0,0.00039452,120]
[339841771,1728052386396,-500.0,0.00039726,120]
[339841772,1728052386406,-742.99,0.00039726,120]
[339841773,1728052386415,-500.0,0.00039726,120]
[339841774,1728052386423,-500.0,0.00039726,120]
[339841775,1728052386432,-500.0,0.00039726,120]
[339841776,1728052386442,-503.61532153,0.0004,120]
[339841777,1728052386451,-742.99,0.0004,120]
[339841778,1728052386460,-500.0,0.0004,120]
[339841779,1728052386470,-500.0,0.0004,120]
[339841780,1728052386479,-500.0,0.0004,120]
[339841781,1728052386489,-742.99,0.00040273,120]
[339841782,1728052386501,-500.0,0.00040273,120]
[339841783,1728052386512,-249.90416951,0.00040273,120]
[339841784,1728052386522,-742.99,0.00040547,120]
[339841785,1728052386531,-500.0,0.00040547,120]
[339841786,1728052386542,-742.99,0.00040821,120]
[339841787,1728052386552,-500.0,0.00040821,120]
[339841788,1728052386566,-823.41,0.00041095,120]
[339841789,1728052386575,-742.99,0.00041095,120]
[339841790,1728052386585,-823.41,0.00041369,120]
[339841791,1728052386595,-742.99,0.00041369,120]
[339841792,1728052386604,-823.41,0.00041643,120]
[339841793,1728052386613,-742.99,0.00041643,120]
[339841794,1728052386622,-823.41,0.00041917,120]
[339841795,1728052386631,-742.99,0.00041917,120]
[339841796,1728052386640,-48004.10875654,0.00042,30]
[339841803,1728053432322,-164.02,0.00010959,2]
[339841804,1728053432331,-139.4256781,0.00013,2]
[339841805,1728053432357,-110.5743219,0.00013,2]
[339841806,1728053432366,-185.03,0.00015,2]
[339841807,1728053432390,-114.97,0.00015,2]
[339841808,1728053432402,-350.0,0.00017,2]
[339841809,1728053432412,-400.0,0.00019,2]
[339841810,1728053432421,-452.0,0.00019614,2]
[339841811,1728053432430,-300.0,0.00019614,2]
[339841812,1728053432440,-251.51,0.00019615,2]
[339841813,1728053432449,-4203.39,0.00019615,2]
[339841814,1728053432459,-554.0,0.00019615,2]
[339841815,1728053432469,-3351.0,0.00019615,2]
[339841816,1728053432479,-1635.099,0.00019615,2]
[339841817,1728053432489,-1910.0,0.00019615,2]
[339841818,1728053432498,-807.0,0.00019615,2]
[339841819,1728053432508,-1148.0,0.00019615,2]
[339841820,1728053432518,-5874.0,0.00019615,2]
[339841822,1728053432528,-7348.557,0.00019615,2]
[339841824,1728053432538,-150.0,0.00019615,2]
[339841826,1728053432548,-499.99,0.00019726,2]
[339841827,1728053432558,-150.99,0.00019726,2]
[339841829,1728053432567,-2935.89,0.00019726,2]
[339841831,1728053432576,-222.07,0.00019726,2]
[339841832,1728053432586,-450.0,0.00021,2]
[339841833,1728053432595,-500.0,0.00023,2]
[339841834,1728053432604,-1000.0,0.00024,15]
[339841835,1728053432614,-1000.0,0.000243,15]
[339841836,1728053432623,-37034.56882301,0.0002449,2]
[339841837,1728053438081,-2039.74778496,0.0002449,2]
[339841838,1728053438110,-1921.4169,0.0002449,2]
[339841839,1728053438140,-1173.98706814,0.0002449,2]
[339841840,1728053438165,-2065.88764727,0.0002449,2]
[339841841,1728053438273,-10702.01255918,0.0002449,2]
[339842026,1728053440192,-2553.24427838,0.0002449,2]
[339842028,1728053440202,-1000.0,0.000245,15]
[339842030,1728053440211,-855.848,0.00024712,7]
[339842032,1728053440221,-168.252,0.00024712,7]
[339842034,1728053440230,-250.0,0.00024799,2]
[339842036,1728053440240,-550.0,0.00025,2]
[339842038,1728053440251,-212.61,0.00025813,2]
[339842040,1728053440260,-600.0,0.00027,2]
[339842042,1728053440270,-280.66774539,0.00027539,2]
[339842044,1728053440279,-23890.0,0.00027653,2]
[339842046,1728053440289,-1148.77,0.00027688,2]
[339842048,1728053440299,-214.28,0.00027725,2]
[339842050,1728053440309,-1000.0,0.00027743,2]
[339842052,1728053440319,-250.0,0.00027759,2]
[339842054,1728053440330,-2000.0,0.0002782,120]
[339842056,1728053440339,-614.38,0.0002785,2]
[339842058,1728053440349,-256.53,0.00027866,2]
[339842060,1728053440359,-4468.16,0.00027881,2]
[339842062,1728053440370,-15146.04377185,0.00027898,2]
[339842066,1728053440401,-844.2639895,0.00027898,2]
[339842068,1728053440414,-1191.445,0.00027898,2]
[339842072,1728053443102,-1220.0,0.00027898,2]
[339842073,1728053443300,-1105.73165171,0.00027898,2]
[339842074,1728053443312,-5263.78558694,0.00027898,2]
[339842075,1728053443321,-451.08,0.00027935,2]
[339842076,1728053443331,-2751.0,0.00027946,2]
[339842077,1728053443340,-1608.61,0.00027981,2]
[339842078,1728053443349,-212.61,0.00028077,2]
[339842079,1728053443358,-150.0,0.00028108,2]
[339842080,1728053443367,-500.0,0.00028206,2]
[339842081,1728053443377,-163.66,0.00028222,2]
[339842082,1728053443386,-250.0,0.00028222,2]
[339842083,1728053443396,-200.0,0.00028241,2]
[339842084,1728053443407,-200.0,0.00028263,2]
[339842085,1728053443417,-2535.08,0.00028287,2]
[339842086,1728053443426,-150.71,0.00028366,2]
[339842087,1728053443436,-150.0,0.00028505,2]
[339842088,1728053443445,-561.08,0.00028514,3]
[339842089,1728053443454,-2715.52,0.00028524,2]
[339842090,1728053443463,-448.66,0.0002861,2]
[339842091,1728053443472,-250.0,0.0002875,2]
[339842092,1728053443481,-164.02,0.00028963,2]
[339842093,1728053443491,-17241.31962772,0.00028972,2]
[339842094,1728053443500,-650.0,0.00029,2]
[339842095,1728053443509,-280.6339,0.00029041,2]
[339842096,1728053443518,-2952.9912,0.00029041,2]
[339842097,1728053443527,-2595.2,0.00029045,2]
[339842098,1728053443537,-1000.0,0.00029187,2]
[339842099,1728053443546,-150.0,0.00029199,2]
[339842100,1728053443555,-196.49,0.00029376,2]
[339842101,1728053443565,-1000.0,0.0003,30]
[339842102,1728053443575,-557.51,0.0003006,2]
[339842103,1728053443586,-167.02,0.00030065,2]
[339842104,1728053443596,-3012.94,0.00030336,2]
[339842105,1728053443605,-212.61,0.00030341,2]
[339842106,1728053443616,-200.0,0.00030533,120]
[339842107,1728053443625,-150.0,0.00030568,2]
[339842108,1728053443635,-178.36,0.00030791,2]
[339842109,1728053443644,-172.97,0.00030923,2]
[339842110,1728053443654,-180.0,0.00030998,120]
[339842111,1728053443666,-700.0,0.00031,2]
[339842112,1728053443676,-1000.0,0.00031,30]
[339842113,1728053443685,-150.71,0.00031966,2]
[339842114,1728053443695,-1000.0,0.00032,30]
[339842115,1728053443704,-212.61,0.00032605,2]
[339842116,1728053443714,-1000.0,0.00032836,2]
[339842117,1728053443723,-4000.0,0.00032877,28]
[339842118,1728053443732,-181.39,0.00032886,2]
[339842119,1728053443742,-1000.0,0.00033,30]
[339842120,1728053443751,-162.43,0.00033622,2]
[339842121,1728053443760,-8500.0,0.00033972,6]
[339842122,1728053443769,-521.02247545,0.00034103,2]
[339842123,1728053443778,-150.0,0.00034548,10]
[339842124,1728053443788,-206.61,0.0003456,120]
[339842125,1728053443797,-212.61,0.00034869,2]
[339842126,1728053443807,-150.0,0.00035162,7]
[339842127,1728053443818,-964.8,0.00035195,10]
[339842128,1728053443829,-622.07,0.00035205,2]
[339842129,1728053443844,-1508.48,0.00035205,2]
[339842130,1728053443855,-851.86,0.00035205,2]
[339842131,1728053443865,-1255.31,0.00035332,10]
[339842132,1728053443875,-385.5,0.00035342,2]
[339842133,1728053443886,-358.52,0.00035342,2]
[339842134,1728053443897,-29834.95,0.00035513,5]
[339842135,1728053443908,-1506.38,0.00035555,10]
[339842136,1728053443919,-150.71,0.00035565,2]
[339842137,1728053443928,-181.39,0.00036174,2]
[339842138,1728053443939,-1000.0,0.00036484,2]
[339842139,1728053443952,-1046.1,0.0003699,10]
[339842140,1728053443963,-1000.0,0.00037,35]
[339842141,1728053443972,-212.61,0.00037133,2]
[339842142,1728053443982,-1000.0,0.00038,45]
[339842143,1728053443991,-500.0,0.00038164,7]
[339842144,1728053444000,-500.0,0.00038164,7]
[339842145,1728053444010,-182.4353,0.00038256,3]
[339842146,1728053444020,-427.44292268,0.00038256,2]
[339842147,1728053444031,-123966.63409,0.00038346,6]
[339842148,1728053444040,-500.0,0.00038356,120]
[339842149,1728053444050,-500.0,0.00038356,120]
[339842150,1728053444059,-500.0,0.00038356,120]
[339842151,1728053444069,-500.0,0.00038356,120]
[339842152,1728053444078,-502.18651025,0.00038356,120]
[339842153,1728053444087,-500.0,0.00038356,120]
[339842154,1728053444097,-541.85298915,0.00038356,120]
[339842155,1728053444106,-500.0,0.00038356,120]
[339842156,1728053444115,-500.0,0.00038356,120]
[339842157,1728053444125,-500.0,0.00038356,120]
[339842158,1728053444135,-500.0,0.00038356,120]
[339842159,1728053444144,-500.0,0.00038356,120]
[339842160,1728053444155,-500.0,0.00038356,120]
[339842161,1728053444164,-500.0,0.00038356,120]
[339842162,1728053444174,-500.0,0.00038356,120]
[339842163,1728053444184,-500.0,0.00038356,120]
[339842164,1728053444193,-500.0,0.00038356,120]
[339842165,1728053444203,-500.0,0.00038356,120]
[339842166,1728053444212,-500.0,0.00038356,120]
[339842167,1728053444221,-500.0,0.00038356,120]
[339842168,1728053444232,-500.0,0.00038356,120]
[339842169,1728053444242,-503.58508475,0.00038356,120]
[339842170,1728053444252,-500.0,0.00038356,120]
[339842171,1728053444262,-500.0,0.00038356,120]
[339842172,1728053444272,-500.0,0.00038356,120]
[339842173,1728053444281,-500.0,0.00038356,120]
[339842174,1728053444290,-500.0,0.00038356,120]
[339842175,1728053444299,-500.0,0.00038356,120]
[339842176,1728053444309,-500.0,0.00038356,120]
[339842177,1728053444320,-500.0,0.00038356,120]
[339842178,1728053444331,-500.0,0.00038356,120]
[339842179,1728053444341,-500.0,0.00038356,120]
[339842180,1728053444350,-500.0,0.00038356,120]
[339842181,1728053444360,-515.25563937,0.00038356,120]
[339842182,1728053444369,-500.0,0.00038356,120]
[339842183,1728053444379,-500.0,0.00038356,120]
[339842184,1728053444388,-500.0,0.00038356,120]
[339842185,1728053444397,-500.0,0.00038356,120]
[339842186,1728053444408,-560.62,0.00038356,120]
[339842187,1728053444418,-500.0,0.00038356,120]
[339842188,1728053444428,-500.0,0.00038356,120]
[339842189,1728053444438,-502.3289949,0.00038356,120]
[339842190,1728053444448,-608.16,0.00038356,120]
[339842191,1728053444458,-571.2,0.00038356,120]
[339842192,1728053444468,-289.86361545,0.00038356,120]
[339842193,1728053444477,-155.481832,0.00038356,120]
[339842194,1728053444487,-500.0,0.00038356,120]
[339842195,1728053444496,-502.19723698,0.00038356,120]
[339842196,1728053444507,-585.2,0.00038356,120]
[339842197,1728053444518,-346.77497212,0.00038356,120]
[339842198,1728053444528,-640.3850988,0.00038356,120]
[339842199,1728053444538,-500.0,0.00038356,120]
[339842200,1728053444547,-500.0,0.00038356,120]
[339842201,1728053444556,-500.0,0.00038356,120]
[339842202,1728053444566,-500.0,0.00038356,120]
[339842203,1728053444575,-500.0,0.00038356,120]
[339842204,1728053444584,-500.0,0.00038356,120]
[339842205,1728053444594,-500.0,0.00038356,120]
[339842206,1728053444603,-168.67802663,0.00038356,120]
[339842207,1728053444613,-958.95,0.00038356,120]
[339842208,1728053444622,-500.0,0.00038356,120]
[339842209,1728053444631,-500.0,0.00038356,120]
[339842210,1728053444641,-500.0,0.00038356,120]
[339842211,1728053444650,-500.0,0.00038356,120]
[339842212,1728053444660,-500.0,0.00038356,120]
[339842213,1728053444670,-500.0,0.00038356,120]
[339842214,1728053444679,-500.0,0.00038356,120]
[339842215,1728053444690,-500.0,0.00038356,120]
[339842216,1728053444701,-500.0,0.00038356,120]
[339842217,1728053444711,-500.0,0.00038356,120]
[339842218,1728053444723,-500.0,0.00038356,120]
[339842219,1728053444735,-500.0,0.00038356,120]
[339842220,1728053444744,-500.0,0.00038356,120]
[339842221,1728053444754,-500.0,0.00038356,120]
[339842222,1728053444763,-500.0,0.00038356,120]
[339842223,1728053444772,-533.06,0.00038356,120]
[339842224,1728053444781,-500.0,0.00038356,120]
[339842225,1728053444790,-500.0,0.00038356,120]
[339842226,1728053444799,-200.84942218,0.00038356,120]
[339842227,1728053444808,-500.0,0.00038356,120]
[339842228,1728053444817,-500.0,0.00038356,120]
[339842229,1728053444827,-527.61,0.00038356,7]
[339842230,1728053444845,-500.0,0.00038356,120]
[339842231,1728053444854,-756.68,0.00038356,120]
[339842232,1728053444863,-915.62,0.00038356,120]
[339842233,1728053444872,-500.0,0.00038356,120]
[339842234,1728053444881,-500.0,0.00038356,120]
[339842235,1728053444890,-500.0,0.00038356,120]
[339842236,1728053444900,-489.09515946,0.00038356,120]
[339842237,1728053444910,-500.0,0.00038356,120]
[339842238,1728053444919,-500.0,0.00038356,120]
[339842239,1728053444928,-500.0,0.00038356,120]
[339842240,1728053444937,-500.0,0.00038356,120]
[339842241,1728053444948,-500.0,0.00038356,120]
[339842242,1728053444958,-500.0,0.00038356,120]
[339842243,1728053444967,-500.0,0.00038356,120]
[339842244,1728053444976,-500.0,0.00038356,120]
[339842245,1728053444985,-500.0,0.00038356,120]
[339842246,1728053444995,-500.0,0.00038356,120]
[339842247,1728053445004,-500.0,0.00038356,120]
[339842248,1728053445014,-500.0,0.00038356,120]
[339842249,1728053445023,-500.0,0.00038356,120]
[339842250,1728053445032,-500.0,0.00038356,120]
[339842251,1728053445042,-500.0,0.00038356,120]
[339842252,1728053445051,-500.0,0.00038356,120]
[339842253,1728053445061,-500.0,0.00038356,120]
[339842254,1728053445070,-500.0,0.00038356,120]
[339842255,1728053445079,-500.0,0.00038356,120]
[339842256,1728053445088,-500.0,0.00038356,120]
[339842257,1728053445097,-500.0,0.00038356,120]
[339842258,1728053445107,-500.0,0.00038356,7]
[339842259,1728053445116,-203.02345767,0.00038356,120]
[339842260,1728053445125,-500.0,0.00038356,120]
[339842261,1728053445135,-500.0,0.00038356,120]
[339842262,1728053445144,-652.98,0.00038356,120]
[339842263,1728053445154,-500.0,0.00038356,120]
[339842264,1728053445213,-500.0,0.00038356,120]
[339842265,1728053445223,-500.0,0.00038356,120]
[339842266,1728053445232,-500.0,0.00038356,120]
[339842267,1728053445241,-500.0,0.00038356,120]
[339842268,1728053445250,-308.0220266,0.00038356,120]
[339842269,1728053445259,-500.0,0.00038356,120]
[339842270,1728053445268,-500.0,0.00038356,120]
[339842271,1728053445277,-500.0,0.00038356,120]
[339842272,1728053445286,-500.0,0.00038356,120]
[339842273,1728053445296,-500.0,0.00038356,120]
[339842274,1728053445306,-500.0,0.00038356,120]
[339842275,1728053445316,-500.0,0.00038356,120]
[339842276,1728053445325,-500.0,0.00038356,120]
[339842277,1728053445334,-500.0,0.00038356,120]
[339842278,1728053445343,-500.0,0.00038356,120]
[339842279,1728053445353,-500.0,0.00038356,120]
[339842280,1728053445362,-500.0,0.00038356,120]
[339842281,1728053445372,-500.0,0.00038356,120]
[339842282,1728053445381,-500.0,0.00038356,120]
[339842283,1728053445392,-500.0,0.00038356,120]
[339842284,1728053445403,-500.0,0.00038356,120]
[339842285,1728053445414,-500.0,0.00038356,120]
[339842286,1728053445424,-500.0,0.00038356,120]
[339842287,1728053445433,-500.0,0.00038356,120]
[339842288,1728053445442,-500.0,0.00038356,120]
[339842289,1728053445451,-500.0,0.00038356,120]
[339842290,1728053445460,-1088.04,0.00038356,120]
[339842291,1728053445469,-503.08653639,0.00038356,120]
[339842292,1728053445478,-500.0,0.00038356,120]
[339842293,1728053445487,-534.4,0.00038356,120]
[339842294,1728053445496,-500.0,0.00038356,120]
[339842295,1728053445505,-500.0,0.00038356,120]
[339842296,1728053445514,-500.0,0.00038356,120]
[339842297,1728053445523,-500.0,0.00038356,120]
[339842298,1728053445532,-500.0,0.00038356,120]
[339842299,1728053445541,-500.0,0.00038356,120]
[339842300,1728053445550,-500.0,0.00038356,120]
[339842301,1728053445559,-500.0,0.00038356,120]
[339842302,1728053445568,-500.0,0.00038356,120]
[339842303,1728053445576,-354.51646365,0.00038356,120]
[339842304,1728053445585,-500.0,0.00038356,120]
[339842305,1728053445595,-500.0,0.00038356,120]
[339842306,1728053445604,-500.0,0.00038356,120]
[339842307,1728053445614,-500.0,0.00038356,120]
[339842308,1728053445622,-500.0,0.00038356,120]
[339842309,1728053445631,-500.0,0.00038356,120]
[339842310,1728053445641,-1202.48,0.00038356,120]
[339842311,1728053445649,-1005.24,0.00038356,120]
[339842312,1728053445659,-500.0,0.00038356,120]
[339842313,1728053445668,-500.0,0.00038356,120]
[339842314,1728053445677,-500.0,0.00038356,120]
[339842315,1728053445687,-500.0,0.00038356,120]
[339842316,1728053445696,-500.0,0.00038356,120]
[339842317,1728053445706,-500.0,0.00038356,120]
[339842318,1728053445716,-529.98,0.00038356,120]
[339842319,1728053445726,-500.0,0.00038356,120]
[339842320,1728053445736,-500.0,0.00038356,120]
[339842321,1728053445745,-500.0,0.00038356,120]
[339842322,1728053445754,-500.0,0.00038356,120]
[339842323,1728053445762,-500.0,0.00038356,120]
[339842324,1728053445771,-500.0,0.00038356,120]
[339842326,1728053445782,-500.0,0.00038356,120]
[339842327,1728053445793,-500.0,0.00038356,120]
[339842329,1728053445805,-500.0,0.00038356,120]
[339842330,1728053445815,-899.58,0.00038356,120]
[339842331,1728053445824,-500.0,0.00038356,120]
[339842332,1728053445839,-500.0,0.00038356,120]
[339842333,1728053445849,-500.0,0.00038356,120]
[339842334,1728053445859,-500.0,0.00038356,120]
[339842335,1728053445868,-500.0,0.00038356,120]
[339842336,1728053445878,-500.0,0.00038356,120]
[339842337,1728053445888,-500.0,0.00038356,120]
[339842338,1728053445899,-500.0,0.00038356,120]
[339842340,1728053445909,-500.0,0.00038356,120]
[339842342,1728053445918,-599.69,0.00038356,120]
[339842343,1728053445928,-500.0,0.00038356,120]
[339842344,1728053445939,-500.0,0.00038356,120]
[339842345,1728053445948,-500.0,0.00038356,120]
[339842346,1728053445959,-500.0,0.00038356,120]
[339842347,1728053445968,-500.0,0.00038356,120]
[339842348,1728053445977,-502.11,0.00038356,120]
[339842349,1728053445986,-606.71,0.00038356,120]
[339842350,1728053445995,-500.0,0.00038356,120]
[339842351,1728053446005,-500.0,0.00038356,120]
[339842352,1728053446014,-500.0,0.00038356,120]
[339842353,1728053446024,-500.0,0.00038356,120]
[339842354,1728053446033,-500.0,0.00038356,120]
[339842355,1728053446043,-500.0,0.00038356,120]
[339842356,1728053446052,-500.0,0.00038356,120]
[339842357,1728053446061,-537.08,0.00038356,120]
[339842358,1728053446071,-500.0,0.00038356,120]
[339842359,1728053446080,-500.0,0.00038356,120]
[339842360,1728053446090,-500.0,0.00038356,120]
[339842361,1728053446100,-500.0,0.00038356,120]
[339842362,1728053446110,-546.3,0.00038356,120]
[339842363,1728053446119,-500.0,0.00038356,120]
[339842364,1728053446129,-150.0,0.00038356,120]
[339842365,1728053446138,-500.0,0.00038356,120]
[339842366,1728053446148,-318.633543,0.00038356,120]
[339842367,1728053446158,-500.0,0.00038356,120]
[339842368,1728053446168,-2914.92,0.00038356,120]
[339842369,1728053446177,-500.0,0.00038356,120]
[339842370,1728053446187,-500.0,0.00038356,120]
[339842371,1728053446197,-500.0,0.00038356,120]
[339842372,1728053446207,-500.0,0.00038356,120]
[339842373,1728053446216,-500.0,0.00038356,120]
[339842374,1728053446226,-500.0,0.00038356,120]
[339842375,1728053446236,-500.0,0.00038356,120]
[339842376,1728053446245,-500.0,0.00038356,120]
[339842377,1728053446254,-500.0,0.00038356,120]
[339842378,1728053446263,-500.0,0.00038356,120]
[339842379,1728053446272,-500.0,0.00038356,120]
[339842380,1728053446282,-500.0,0.00038356,120]
[339842381,1728053446291,-500.0,0.00038356,120]
[339842382,1728053446301,-500.0,0.00038356,120]
[339842383,1728053446310,-500.0,0.00038356,120]
[339842384,1728053446319,-500.0,0.00038356,120]
[339842385,1728053446328,-500.0,0.00038356,120]
[339842386,1728053446337,-500.0,0.00038356,120]
[339842387,1728053446346,-500.0,0.00038356,120]
[339842388,1728053446355,-522.28,0.00038356,120]
[339842389,1728053446364,-500.0,0.00038356,120]
[339842390,1728053446373,-500.0,0.00038356,120]
[339842391,1728053446383,-500.0,0.00038356,120]
[339842392,1728053446393,-500.0,0.00038356,120]
[339842393,1728053446403,-650.26,0.00038356,120]
[339842394,1728053446414,-500.0,0.00038356,120]
[339842395,1728053446423,-500.0,0.00038356,120]
[339842396,1728053446432,-954.38,0.00038356,120]
[339842397,1728053446441,-2911.58,0.00038356,120]
[339842398,1728053446451,-500.0,0.00038356,120]
[339842399,1728053446460,-727.06,0.00038356,120]
[339842400,1728053446469,-500.0,0.00038356,120]
[339842401,1728053446478,-500.0,0.00038356,120]
[339842402,1728053446487,-2945.96,0.00038356,120]
[339842403,1728053446496,-500.0,0.00038356,120]
[339842404,1728053446505,-500.0,0.00038356,120]
[339842405,1728053446514,-500.0,0.00038356,120]
[339842406,1728053446523,-508.56562916,0.00038356,120]
[339842407,1728053446532,-579.89387179,0.00038356,120]
[339842408,1728053446541,-500.0,0.00038356,120]
[339842409,1728053446550,-500.0,0.00038356,120]
[339842410,1728053446559,-722.03,0.00038356,120]
[339842411,1728053446568,-500.0,0.00038356,120]
[339842412,1728053446577,-4598.67,0.00038356,120]
[339842413,1728053446586,-500.0,0.00038356,120]
[339842414,1728053446595,-500.0,0.00038356,120]
[339842416,1728053446605,-500.0,0.00038356,120]
[339842417,1728053446614,-500.0,0.00038356,120]
[339842418,1728053446623,-395.05149702,0.00038356,120]
[339842419,1728053446631,-866.32,0.00038356,120]
[339842420,1728053446640,-500.0,0.00038356,120]
[339842421,1728053446649,-500.0,0.00038356,120]
[339842422,1728053446660,-500.0,0.00038356,120]
[339842423,1728053446669,-500.0,0.00038356,120]
[339842424,1728053446678,-500.0,0.00038356,120]
[339842425,1728053446687,-500.0,0.00038356,120]
[339842426,1728053446696,-1504.94,0.00038356,120]
[339842427,1728053446705,-500.0,0.00038356,120]
[339842428,1728053446715,-500.0,0.00038356,120]
[339842430,1728053446724,-500.0,0.00038356,120]
[339842432,1728053446733,-500.0,0.00038356,120]
[339842433,1728053446742,-500.0,0.00038356,120]
[339842434,1728053446751,-500.0,0.00038356,120]
[339842435,1728053446762,-500.0,0.00038356,120]
[339842436,1728053446773,-269.82209761,0.00038356,120]
[339842437,1728053446784,-659.56,0.00038356,120]
[339842438,1728053446794,-500.0,0.00038356,120]
[339842439,1728053446803,-500.0,0.00038356,120]
[339842440,1728053446814,-508.57468124,0.00038356,120]
[339842441,1728053446824,-500.0,0.00038356,120]
[339842442,1728053446837,-500.0,0.00038356,120]
[339842443,1728053446847,-1818.31,0.00038356,120]
[339842444,1728053446857,-500.0,0.00038356,120]
[339842445,1728053446867,-750.14,0.00038356,120]
[339842446,1728053446878,-500.0,0.00038356,120]
[339842447,1728053446888,-500.0,0.00038356,120]
[339842448,1728053446897,-500.0,0.00038356,120]
[339842449,1728053446907,-500.0,0.00038356,120]
[339842450,1728053446917,-500.0,0.00038356,120]
[339842451,1728053446928,-500.0,0.00038356,120]
[339842452,1728053446939,-532.9,0.00038356,120]
[339842453,1728053446948,-777.96,0.00038356,120]
[339842454,1728053446959,-728.87,0.00038356,120]
[339842455,1728053446969,-926.4,0.00038356,120]
[339842456,1728053446979,-279.63020885,0.00038356,120]
[339842457,1728053446989,-500.0,0.00038356,120]
[339842458,1728053446998,-500.0,0.00038356,120]
[339842459,1728053447007,-929.17,0.00038356,120]
[339842460,1728053447017,-500.0,0.00038356,120]
[339842461,1728053447027,-500.0,0.00038356,120]
[339842462,1728053447037,-500.0,0.00038356,120]
[339842463,1728053447046,-500.0,0.00038356,120]
[339842464,1728053447055,-500.0,0.00038356,120]
[339842465,1728053447065,-500.0,0.00038356,120]
[339842466,1728053447074,-500.0,0.00038356,120]
[339842467,1728053447083,-611.44860299,0.00038356,120]